Cogmind - Beta 13 *** ADVENTURER MODE // 2024.07.09 @ 22:09:43 // Winter2019/RPGLIKE Player: nivertius Result: Destroyed by G-47 Trooper with Particle Gun Performance ------------- Evolutions (2) 1000 Regions Visited (3) 600 Robots Destroyed (139) 695 Value Destroyed (3178) 3178 Prototype IDs (9) 180 Alien Tech Used (0) 0 Bonus (882) 882 TOTAL SCORE: 6535 Bonus ------- High Alert Combat Kills 882 Cogmind --------- Core Integrity 0/600 Matter 290/300 Energy 370/370 System Corruption 0% Temperature Warm (111) Movement Flying (29) Location -8/Materials Parts ------- > --- POWER (2) -------- Light Nuclear Core Light Nuclear Core > --- PROPULSION (3) --- Cesium-ion Thruster Cesium-ion Thruster Cesium-ion Thruster > --- UTILITY (4) ------ Heat Sink Medium Battery Improved Terrain Scanner > --- WEAPON (2) ------- Heavy Particle Gun Heavy Particle Gun > --- INVENTORY (2) ---- Improved Hover Unit Peak State ------------ > --- POWER ------------ Light Nuclear Core Light Nuclear Core > --- PROPULSION ------- Cesium-ion Thruster Cesium-ion Thruster Cesium-ion Thruster > --- UTILITY ---------- Heat Sink Medium Battery Improved Terrain Scanner > --- WEAPON ----------- Heavy Particle Gun Heavy Particle Gun > --- INVENTORY -------- Improved Hover Unit [Rating: 28] Favorites ----------- Power Light Nuclear Core Engine Ion Engine Power Core Light Nuclear Core Propulsion Improved Hover Unit Treads Light Treads Wheel Wheel Hover Unit Improved Hover Unit Flight Unit Cesium-ion Thruster Utility Heat Sink Device Heat Sink Storage Medium Battery Processor Terrain Scan Processor Weapon Improved EM Shotgun Energy Gun Improved EM Shotgun Energy Cannon Light EM Pulse Cannon Ballistic Gun Assault Rifle Launcher Mini Grenade Launcher Slashing Weapon Mining Claw Build | -11 -10 -9 -8 ------- Run | Yrd Mat Mat Mat Slots Evolved 7 | 2 2 2 1 Power 1 | . 1 . . Propulsion 2 | 1 . 1 . Utility 3 | 1 1 . 1 Weapon 1 | . . 1 . Parts Attached 44 | 8 12 15 9 Power 7 | 1 3 3 . Engine 4 | 1 2 1 . Core 3 | . 1 2 . Reactor . | . . . . Propulsion 13 | 5 4 1 3 Treads 4 | 2 2 . . Leg . | . . . . Wheel 3 | 3 . . . Hover 3 | . 2 1 . Flight 3 | . . . 3 Utility 6 | . 3 2 1 Device 4 | . 2 1 1 Storage 1 | . . 1 . Processor 1 | . 1 . . Hackware . | . . . . Protection . | . . . . Artifact . | . . . . Weapon 18 | 2 2 9 5 Energy Gun 11 | 1 . 5 5 Energy Cannon 2 | . 1 1 . Ballistic Gun 3 | 1 . 2 . Ballistic Cannon . | . . . . Launcher 1 | . . 1 . Special Weapon . | . . . . Impact Weapon . | . . . . Slashing Weapon 1 | . 1 . . Piercing Weapon . | . . . . Special Melee Weapon . | . . . . Unidentified Prototypes 5 | . . 4 1 Corrupted Parts 1 | . 1 . . System Corruption 3 | . 3 . . Parts Lost 1 | . . . 1 Power . | . . . . Propulsion . | . . . . Utility . | . . . . Weapon 1 | . . . 1 Highest Loss Streak 1 | . . . 1 To Critical Strikes . | . . . . Average Slot Usage (%) 95 | . 94 96 89 Engine 4 | . 13 . . Core 14 | . 2 19 19 Treads 5 | . 17 . . Hover 23 | . 11 29 25 Device 18 | . 23 16 10 Storage 3 | . . 3 9 Processor 7 | . 10 6 . Energy Gun 11 | . 5 13 13 Energy Cannon 2 | . 5 1 . Launcher 2 | . . 2 5 Naked Turns . | . . . . Heaviest Build 20 | 7 16 19 20 Greatest Support 40 | 40 40 21 25 Greatest Overweight (x) 3 | . 2 1 3 Average Overweight (x) . | . . . . Largest Inventory Capacity 2 | 1 1 1 2 Average Capacity 1 | . 1 1 1 Most Carried 1 | 1 1 1 1 Average Carried . | . . . . Final Capacity 2 | 1 1 1 2 Final Carried 1 | 1 1 1 1 Class Distribution -------------------- 98% | Mutant Dominant Class ---------------- Mutant | -10/Materials Mutant | -9/Materials Mutant | -8/Materials Resources | -11 -10 -9 -8 ----------- Run | Yrd Mat Mat Mat Matter Collected 1615 | 169 211 903 332 Remotely . | . . . . Salvage Created 4067 | 107 482 2723 755 Parts 295 | 1 52 211 31 Haulers Intercepted 11 | . 2 6 3 Recyclers Shooed 2 | . . 1 1 Parts Field Recycled . | . . . . Retrieved Matter . | . . . . Parts Self-Destructed . | . . . . Prevented . | . . . . Kills | -11 -10 -9 -8 ------- Run | Yrd Mat Mat Mat Combat Hostiles Destroyed 74 | . 11 50 13 Guns 34 | . 3 27 4 Cannons 15 | . 6 9 . AOE 22 | . . 13 9 Classes Destroyed 14 | 2 6 4 2 Worker 15 | . 1 14 . Builder 16 | . 4 8 4 Tunneler 6 | 1 . 5 . Hauler 11 | . 2 6 3 Recycler 6 | 1 1 2 2 Mechanic 2 | . . 2 . Operator 1 | . . 1 . Watcher 8 | . 3 5 . Swarmer 20 | . 2 18 . Grunt 39 | . 9 21 9 Brawler 1 | . . . 1 Duelist 1 | . . 1 . Sentry 12 | . . 10 2 Hunter 1 | . . . 1 Best Kill Streak 19 | 2 8 19 17 Combat Bots Only 7 | . 3 7 7 Max Kills in Single Turn 3 | 1 2 3 2 Gunslinging 1 | . . 1 . Exploded 2 | . . 2 1 Melee . | . . . . Uniques/NPCs Destroyed . | . . . . Combat | -11 -10 -9 -8 -------- Run | Yrd Mat Mat Mat Hostile Shots Fired 288 | . 74 140 74 Missed 102 | . 25 56 21 Damage Taken 1917 | . 439 850 628 Core 1542 | . 359 672 511 Absorbed by Shields . | . . . . Redirected to Core 1175 | . 250 545 380 Ignored by Resistances 573 | . 137 251 185 Core Remaining (%) 92 | 100 100 76 . Volleys Fired 296 | 7 52 190 47 Largest 2 | 1 1 2 2 Hottest 110 | 40 56 90 110 Shots Fired 381 | 7 52 262 60 Gun 220 | 7 24 153 36 Cannon 66 | . 28 38 . Launcher 95 | . . 71 24 Special . | . . . . Kinetic . | . . . . Thermal 33 | . . . 33 Explosive 95 | . . 71 24 Electromagnetic 253 | 7 52 191 3 Robot Hit Streak 31 | 7 16 26 31 Robot Miss Streak 2 | . 2 2 1 Penetration Max . | . . . . Secondary Targets 4 | . . 4 . Max Gunslinging Chain 1 | . . 1 . Shots Hit Robots 267 | 7 47 170 43 Core Hits 198 | 3 26 128 41 Critical Kills . | . . . . Critical Parts Destroyed . | . . . . Critical Strikes . | . . . . Melee Attacks 16 | . 16 . . Impact . | . . . . Slashing 16 | . 16 . . Piercing . | . . . . Sneak Attacks 2 | . 2 . . Combat Hostiles . | . . . . Follow-up Attacks . | . . . . Damage Inflicted 8550 | 90 1210 4759 2491 Guns 3035 | 90 293 2107 545 Cannons 1360 | . 601 759 . Explosions 4047 | . 220 1881 1946 Melee 96 | . 96 . . Ramming 12 | . . 12 . Kinetic . | . . . . Thermal 1536 | . 220 806 510 Explosive 3021 | . . 1075 1946 Electromagnetic 3885 | 90 894 2866 35 Impact . | . . . . Slashing 96 | . 96 . . Piercing . | . . . . Highest Corruption 3 | . 3 . . Average Corruption 3 | . 3 . . Corruption Purged . | . . . . Corruption Blocked . | . . . . Effects 6 | . 6 . . Message Errors 2 | . 2 . . Matter Fused 3 | . 3 . . Energy Discharges 1 | . 1 . . Overload Shots . | . . . . Overflow Damage 96 | . 5 61 30 Projectiles . | . . . . Explosions 91 | . . 61 30 Melee 5 | . 5 . . Knockbacks . | . . . . Impact . | . . . . Kinetic . | . . . . Secondary . | . . . . Self-Inflicted Damage 137 | . . 125 12 Shots 7 | . . 6 1 Rammed 2 | . . 2 . Targets Rammed 2 | . . 2 . Kicked . | . . . . Crushed . | . . . . Highest Temperature 591 | . 42 291 591 Average Temperature 113 | . 11 90 219 Received Heat Transfer 1035 | . 300 321 414 Effects 19 | . . 3 16 Shutdowns 5 | . . . 5 Interference 8 | . . 3 5 Matter Decay 2 | . . . 2 Damage (major) 4 | . . . 4 Siege Activations . | . . . . Robots Corrupted 3 | . 2 1 . Combat Hostiles 3 | . 2 1 . Parts Fried 18 | 2 1 15 . Impact Corruptions . | . . . . Robots Melted . | . . . . Combat Hostiles . | . . . . Parts Melted 4 | . . 4 . Heat Transferred 2262 | . 200 1100 962 Parts Sabotaged . | . . . . Parts Stolen . | . . . . Parts Stripped . | . . . . Power Chain Reactions 16 | . 4 12 . Alert | -11 -10 -9 -8 ------- Run | Yrd Mat Mat Mat Peak Influence 1827 | 10 266 1827 1105 Initial 657 | . 5 23 657 Average 670 | 3 123 958 970 Maximum Alert Level 5 | . 1 5 4 Low Security (%) 28 | 100 63 10 . Level 1 14 | . 36 5 . Level 2 5 | . . 9 5 Level 3 27 | . . 35 89 Level 4 17 | . . 29 4 Level 5 5 | . . 9 . High Security . | . . . . Max Security . | . . . . Sterilizations 1 | . . 1 . Squads Dispatched 11 | . 2 7 2 Investigation 7 | . 2 4 1 Extermination . | . . . . Reinforcement 2 | . . 1 1 Assault 2 | . . 2 . Garrison . | . . . . Intercept . | . . . . Searches Triggered . | . . . . Construction Impeded 1 | . . . 1 Haulers Reinforced . | . . . . Active Scanning Responses . | . . . . Cargo Convoy Interrupts . | . . . . Stealth | -11 -10 -9 -8 --------- Run | Yrd Mat Mat Mat Distress Signals 4 | . 1 2 1 Communications Jammed . | . . . . Distress Signals . | . . . . Times Spotted 100 | . 18 61 21 Peak Tracking Total 7 | . 5 6 7 Tactical Retreats 2 | . 1 1 . Traps | -11 -10 -9 -8 ------- Run | Yrd Mat Mat Mat Traps Triggered 6 | . 1 4 1 Indirectly . | . . . . Trap Hack Attempts . | . . . . Triggered . | . . . . Disarmed . | . . . . Reprogrammed . | . . . . Reused . | . . . . Traps Extracted . | . . . . Installed . | . . . . Triggered 1 | . . 1 . Machines | -11 -10 -9 -8 ---------- Run | Yrd Mat Mat Mat Machines Disabled 44 | . . 43 1 Max in Single Turn 2 | . . 2 1 Machines Repaired . | . . . . Machines Dismantled . | . . . . Machines Sabotaged . | . . . . Overloaded Fab Kills . | . . . . Hacking | -11 -10 -9 -8 --------- Run | Yrd Mat Mat Mat Machines Accessed 4 | . 4 . . Terminals 4 | . 4 . . Fabricators . | . . . . Repair Stations . | . . . . Recycling Units . | . . . . Scanalyzers . | . . . . Garrison Access . | . . . . Total Hacks 13 | . 13 . . Successful 8 | . 8 . . Failed 5 | . 5 . . Catastrophic 2 | . 2 . . Database Lockouts . | . . . . Manual 5 | . 5 . . Terminals 13 | . 13 . . Fabricators . | . . . . Repair Stations . | . . . . Recycling Units . | . . . . Scanalyzers . | . . . . Garrison Access . | . . . . Terminal Hacks 8 | . 8 . . Robot Analysis 1 | . 1 . . Prototype ID Bank 3 | . 3 . . Level Access Points 1 | . 1 . . Emergency Access Points 1 | . 1 . . Alert Level 1 | . 1 . . Patrol Status 1 | . 1 . . Fabricator Hacks . | . . . . Repair Station Hacks . | . . . . Recycling Unit Hacks . | . . . . Scanalyzer . | . . . . Garrison Access Hacks . | . . . . Unauthorized Hacks . | . . . . Terminals . | . . . . Fabricators . | . . . . Repair Stations . | . . . . Recycling Units . | . . . . Scanalyzers . | . . . . Garrison Access . | . . . . Data Cores Recovered . | . . . . Used . | . . . . Hacking Detections 4 | . 4 . . Full Trace Events 4 | . 4 . . Feedback Events . | . . . . Feedback Blocked . | . . . . Robot Schematics Acquired . | . . . . Robots Built . | . . . . Authchips . | . . . . Time . | . . . . Total Robot Build Rating . | . . . . Part Schematics Acquired . | . . . . Parts Built . | . . . . Authchips . | . . . . Time . | . . . . Total Part Build Rating . | . . . . Parts Repaired . | . . . . Time . | . . . . Parts Recycled . | . . . . Recycled Matter . | . . . . Retrieved Matter . | . . . . Retrieved Components . | . . . . Parts Scanalyzed . | . . . . Part Schematics Acquired . | . . . . Parts Damaged . | . . . . Bothacking | -11 -10 -9 -8 ------------ Run | Yrd Mat Mat Mat Used RIF Installer . | . . . . Robots Hacked . | . . . . Non-combat . | . . . . Combat . | . . . . Robot Hacks Applied . | . . . . Relay Couplers Released . | . . . . Fabnet Peak Effective % . | . . . . Robots Rewired . | . . . . Allies Hacked . | . . . . Hacks Repelled . | . . . . Allies | -11 -10 -9 -8 -------- Run | Yrd Mat Mat Mat Total Allies . | . . . . Largest Group . | . . . . Highest-Rated Group . | . . . . Highest-Rated Ally . | . . . . Total Orders . | . . . . Ally Attacks . | . . . . Total Damage . | . . . . Kills . | . . . . Allies Corrupted . | . . . . Allies Melted . | . . . . Intel | -11 -10 -9 -8 ------- Run | Yrd Mat Mat Mat Robot Analysis Total 1 | . 1 . . Derelict Logs Recovered . | . . . . Drone Launches . | . . . . Drone Recoveries . | . . . . Exploration | -11 -10 -9 -8 ------------- Run | Yrd Mat Mat Mat Turns Passed 2948 | 114 888 1710 236 Spaces Moved 3000 | 66 632 2154 148 Core 15 | 13 2 . . Treads 283 | 48 235 . . Legs . | . . . . Wheels 5 | 5 . . . Hover 2657 | . 395 2154 108 Flight 40 | . . . 40 Fastest Speed 29 | 50 56 52 29 Average Speed 66 | 133 105 54 53 Slowest Speed 275 | 160 160 116 275 Overloaded Moves . | . . . . Propulsion Burnouts . | . . . . Robots Hopped . | . . . . Cave-ins Triggered . | . . . . Exploration Rate (%) 49 | 6 80 97 15 Regions Visited 3 Branch Regions . Pre-discovered Areas . | . . . . Known Exits Taken 1 | . 1 . . Unknown Exits Taken 2 | 1 . 1 . Scrap Searched . | . . . . Spaces Dug 22 | . 10 12 . Terrain Destroyed 707 | . 18 596 93 Melee 10 | . 10 . . Projectile . | . . . . AOE 697 | . 8 596 93 Terrain Rammed . | . . . . Walls Destroyed . | . . . . Machines Disabled . | . . . . Actions | -11 -10 -9 -8 --------- Run | Yrd Mat Mat Mat Total 3537 | 85 772 2436 244 Wait 71 | . 23 18 30 Move 2997 | 65 631 2153 148 Hop . | . . . . Pick Up 8 | 1 4 3 . Fast Attach 35 | 6 11 11 7 Attach 3 | 1 . 1 1 Detach 5 | 1 1 2 1 Swap 6 | 1 1 3 1 Drop 31 | 3 8 14 6 Fire 296 | 7 52 190 47 Melee 16 | . 16 . . Ram 2 | . . 2 . Kick . | . . . . Crush . | . . . . Escape Stasis . | . . . . Rewire . | . . . . Trap . | . . . . Miscellaneous 67 | . 25 39 3 Route ------- -11/Scrapyard -10/Materials (discovered 4 exits: *Mat x3 / [Sub]) -9/Materials (discovered 4 exits: [*Mat x3] / [*Min]) -8/Materials History --------- Turn | Location | Event 6 | -11/Scrapyard | Discovered new exit (range 15) 16 | -11/Scrapyard | Upgraded with Propulsion slot (x1) 16 | -11/Scrapyard | Upgraded with Utility slot (x1) 115 | -11/Scrapyard | Entered Materials 154 | -10/Materials | Identified exit to Materials 322 | -10/Materials | Upgraded with Utility slot (x1) 343 | -10/Materials | Build established: Mutant 649 | -10/Materials | Discovered new exit (range 10) 857 | -10/Materials | Reached level 2 860 | -10/Materials | Upgraded with Power slot (x1) 1003 | -10/Materials | Entered another Materials area 1005 | -9/Materials | Reached level 3 1110 | -9/Materials | Upgraded with Propulsion slot (x1) 1130 | -9/Materials | Reached level 4 1273 | -9/Materials | Reached level 5 1289 | -9/Materials | Upgraded with Weapon slot (x1) 1299 | -9/Materials | Discovered new exit (range 16) 1352 | -9/Materials | Destroyed 7 combat bots 1359 | -9/Materials | Reached level 6 1629 | -9/Materials | Discovered new exit (range 16) 1647 | -9/Materials | Reached level 7 1778 | -9/Materials | Discovered new exit (range 16) 1803 | -9/Materials | First assault squad dispatched 1978 | -9/Materials | Reached level 8 2066 | -9/Materials | Discovered new exit (range 16) 2648 | -9/Materials | Reached level 9 2673 | -9/Materials | Sterilization system engaged 2673 | -9/Materials | Non-combat units ordered to evacuate 2713 | -9/Materials | Entered another Materials area 2715 | -8/Materials | Reached level 10 2761 | -8/Materials | Core integrity fell below 50% 2781 | -8/Materials | Destroyed 7 combat bots 2817 | -8/Materials | Reached level 11 2870 | -8/Materials | Core integrity fell below 20% 2924 | -8/Materials | Upgraded with Utility slot (x1) 2949 | -8/Materials | Destroyed by G-47 Trooper with Particle Gun Last Messages --------------- 02918_ U-05 Engineer lays Concrete. 02919_ K-01 Serf collects debris. 02920_ Acquired 96 matter. 02924_ Upgraded: Heat Dissipation (+12) 02924_ Upgraded: Mass Support (+10) 02924_ Upgraded: Utility Slot (+1) 02924_ Upgraded: Inventory Capacity (+1) 02924_ Upgraded: Ranged Accuracy (+10) 02924_ K-01 Serf collects debris. 02925_ Acquired 21 matter. 02926_ Acquired 64 matter. 02926_ Acquired 19 matter. 02927_ K-01 Serf collects debris. 02927_ Triggered Alarm Trap. 02927_ An alarm sounds. 02927_ ALERT: Alarm triggered, dispatching investigation squad. 02928_ Acquired Imp. Terrain Scanner. 02931_ K-01 Serf collects debris. 02938_ Y-45 Defender destroyed. 02945_ K-01 Serf collects debris. Map ----- +----------------------------------------------------+ | ?????????????????????????????????????????????????? | | ?????????????????????????????????????????????????? | | ?????????????????????????????????????????????????? | | ?????????????????????????????????????????????????? | | ?????????????????????????????????????????????????? | | ?????????????????????????????????????????????????? | | ?????????????????????????????????????????????????? | | ?????????????????????????????????????????????????? | | ?????????????????????????????????????????????????? | | ?????????????????????????????????????????????????? | | ?????????????????????????????????????????????????? | | ?????????????????????? ????#?????????????????????? | | ?????????????????????????????????????????????????? | | ??????????????????????? ?????????????????????????? | | ????????????????????????????????????????? ?????? | | ????????????????????????????????##??##### #????? | | ???????????????????????????????? ? # #????? | | ?????????????????????########### "?" "# #????? | | ?????????????????????# # """ "# #?##?? | | ?????????????????????# # """ "# #? ?? | | ???????????? ???????# """ """ # """ T# ## """ | | ??????? ? ????# """ """ # "# ## "R" | | ??????? *###=""" """ # "# ## " " | | ??????? k%g= # "# # | | ??????? ###g # # # | | ??????? ????????# @ ##+ ## # % ## | | ?????????????????????######+#### *= ### ####+# | | ?????????????????????????# % % ==* | | ?????????????????? ??????# = %= = * | | ?????????????????????????# % =[[[ ] | | ????????????????????? ???## #####[ ###+### ### | | ??????????????????????????# ##### ## # #?? | | ??????????????????????????# + """ # # / % #?? | | ??????????????????????????# # "R" / ! #?? | | ??????????????????????????# # " " ### #?? | | ??????????????????????????# # ## #?? | | ??????????????????????????# # #### #?? | | ??????????????????????????# # ## #?? | | ??????????????????????????# ######### #% #?? | | ?????????????????????????? #???????### ! #?? | | ??????????????????????????##????????# # ##?? | | ????????????????????????????????????## ## ###??? | | ?????????????????????????????????????## ## ##???? | | ??????????????????????????????????????###?###????? | | ?????????????????????????????????????????????????? | | ?????????????????????????????????????????????????? | | ?????????????????????????????????????????????????? | | ?????????????????????????????????????????????????? | | ?????????????????????????????????????????????????? | | | +----------------------------------------------------+ Best States ------------- Heat Dissipation 47 Energy Generation 23 Energy Capacity 370 Matter Stores 300 Matter Capacity 300 Sight Range 16 Terrain Scan Range 16 Terrain Scan Density 85 Resistance: KI 20 Resistance: TH 20 Resistance: EX 20 Resistance: EM 20 Resistance: I 20 Resistance: S 20 Resistance: P 20 Evasion (%) 64 Recoil Reduction 2 Offensive Hacking 10 Item Schematics ----------------- None Robot Schematics ------------------ None Fabricated ------------ Nothing Alien Tech Used ----------------- None Achievements -------------- Part-time Excavator Challenges ------------ None RPGLIKE | -11 -10 -9 -8 --------- Run | Yrd Mat Mat Mat Levels Raised 10 | . 1 7 2 XP Earned 19359 | 4000 1575 10588 3196 XP Spent 8470 | 1250 2200 1300 3720 Upgrades 17 | 3 4 2 8 Power Slot 1 | . 1 . . Propulsion Slot 2 | 1 . 1 . Utility Slot 3 | 1 1 . 1 Weapon Slot 1 | . . 1 . Heat Dissipation 2 | . . . 2 Mass Support 2 | . . . 2 Inventory Capacity 2 | 1 . . 1 Ranged Accuracy 4 | . 2 . 2 Protomatter Created 917 | . 334 566 17 Integrity Restored 1182 | . 461 670 51 Core 939 | . 359 529 51 Parts 243 | . 102 141 . Protomatter Decayed 441 | . 142 299 . Game ------ Seed BurstDamperExtractor Manual? 0 Play Time 00:33:49 Cumulative 82.6 hours Start 2024.07.09 @ 21:35:32 End 2024.07.09 @ 22:09:43 Sessions 1 Manual Loads 0 Difficulty Adventurer Special Mode Winter2019/RPGLIKE Game No. 27 Rogue 6 Adventurer 21 Explorer 0 Win Type - Total 3 Types 2/0/0/1/0/0/0/0/0 Lore% 54 Gallery% 64 Achievement% 58 Wizard Run 0 Options --------- Layout 0 ASCII 0 Keyboard 1 Movement Numpad Keybinds 0 Fullscreen 1 Font 36/Crisp Map View 76x50 Zoom Use 0% Tactical HUD 1 Map Filters NONE Filters NONE Steam 1 RUN: 32ba3444-fdfb-464f-b3a9-9d771be0fa43